Cogmind - Beta 13 @@@ ROGUE MODE // 2024.04.04 @ 21:03:38 Player: Verbt Result: Destroyed by G-47 Trooper with Particle Gun Performance ------------- Evolutions (2) 1000 Regions Visited (6) 1200 Robots Destroyed (15) 75 Value Destroyed (384) 384 Prototype IDs (24) 480 Alien Tech Used (0) 0 Bonus (300) 300 TOTAL SCORE: 3439 Bonus ------- Aligned with FarCom 300 Cogmind --------- Core Integrity 0/550 Matter 230/300 Energy 35/100 System Corruption 9% Temperature Cool (18) Movement Core (100) Ox1 Location -8/Storage Parts ------- > --- POWER (2) -------- (None) > --- PROPULSION (3) --- (None) > --- UTILITY (4) ------ Machine Analyzer Improved Targeting Computer Power Shielding > --- WEAPON (2) ------- EM Pulse Gun Hammer > --- INVENTORY (5) ---- (None) Peak State ------------ > --- POWER ------------ Light Deuterium Engine > --- PROPULSION ------- Light Treads Improved Treads Improved Treads > --- UTILITY ---------- Machine Analyzer Improved Targeting Computer Light Armor Plating Trap Reconfigurator > --- WEAPON ----------- Advanced Beam Cannon Grenade Launcher > --- INVENTORY -------- Light Ion Engine Power Shielding EM Pulse Gun Hammer [Rating: 27] Favorites ----------- Power Light Ion Engine Engine Light Ion Engine Propulsion Wheel Treads Light Treads Wheel Wheel Hover Unit Airjet Flight Unit Flight Unit Utility Power Shielding Device Trap Reconfigurator Processor Improved Targeting Computer Protection Power Shielding Weapon Hammer Energy Gun EM Pulse Gun Energy Cannon Advanced Beam Cannon Ballistic Gun Light Assault Rifle Launcher Grenade Launcher Impact Weapon Hammer Build | -11 -10 -10 -10 -9 -8 -8 ------- Run | Yrd Mat Min Exi Min Mat Sto Slots Evolved 4 | . . . . . 4 . Power 1 | . . . . . 1 . Propulsion 1 | . . . . . 1 . Utility 2 | . . . . . 2 . Weapon . | . . . . . . . Parts Attached 35 | 5 2 . 5 1 17 5 Power 7 | 1 . . 1 . 5 . Engine 7 | 1 . . 1 . 5 . Core . | . . . . . . . Reactor . | . . . . . . . Propulsion 10 | 2 . . 3 . 5 . Treads 4 | . . . . . 4 . Leg . | . . . . . . . Wheel 2 | 2 . . . . . . Hover 1 | . . . . . 1 . Flight 3 | . . . 3 . . . Utility 7 | . 1 . 1 . 4 1 Device 1 | . . . 1 . . . Storage . | . . . . . . . Processor 2 | . . . . . 2 . Hackware . | . . . . . . . Protection 4 | . 1 . . . 2 1 Artifact . | . . . . . . . Weapon 11 | 2 1 . . 1 3 4 Energy Gun 2 | 1 . . . . . 1 Energy Cannon 2 | . . . . . 1 1 Ballistic Gun 1 | 1 . . . . . . Ballistic Cannon . | . . . . . . . Launcher 3 | . . . . 1 1 1 Special Weapon . | . . . . . . . Impact Weapon 3 | . 1 . . . 1 1 Slashing Weapon . | . . . . . . . Piercing Weapon . | . . . . . . . Special Melee Weapon . | . . . . . . . Unidentified Prototypes 2 | . . . 1 . 1 . Corrupted Parts 1 | . . . . . 1 . System Corruption 7 | . . . . . 7 . Parts Lost 11 | . . . . . 4 7 Power 2 | . . . . . 1 1 Propulsion 5 | . . . . . 2 3 Utility 3 | . . . . . 1 2 Weapon 1 | . . . . . . 1 Highest Loss Streak 7 | . . . . . 3 7 To Critical Strikes . | . . . . . . . Average Slot Usage (%) 78 | . 83 85 86 89 63 63 Engine 11 | . 14 14 14 14 8 5 Treads 4 | . . . . . 9 19 Wheel 10 | . 28 28 18 . . . Flight 8 | . . . 9 28 4 . Device 6 | . . . 1 14 9 4 Processor 4 | . . . . . 11 18 Protection 11 | . 12 14 14 14 6 5 Energy Cannon 1 | . . . . . 4 4 Ballistic Gun 6 | . 14 14 14 1 . . Launcher 5 | . . . . 11 8 4 Impact Weapon 7 | . 12 14 14 4 2 . Naked Turns . | . . . . . . . Heaviest Build 16 | 6 7 7 8 10 16 16 Greatest Support 66 | 20 20 20 20 8 66 66 Greatest Overweight (x) 2 | . . . . 1 2 1 Average Overweight (x) . | . . . . . . . Largest Inventory Capacity 5 | 5 5 5 5 5 5 5 Average Capacity 5 | 5 5 5 5 5 5 5 Most Carried 5 | 1 5 3 4 4 5 5 Average Carried 2 | . 2 3 3 2 3 3 Final Capacity 5 | 5 5 5 5 5 5 5 Final Carried 4 | 1 3 3 3 2 4 . Class Distribution -------------------- 100% | Mutant Dominant Class ---------------- Mutant | -10/Materials Mutant | -10/Mines Mutant | -10/Exiles Mutant | -9/Mines Mutant | -8/Materials Mutant | -8/Storage Resources | -11 -10 -10 -10 -9 -8 -8 ----------- Run | Yrd Mat Min Exi Min Mat Sto Matter Collected 537 | 254 21 1 . 22 239 . Remotely . | . . . . . . . Salvage Created 484 | 49 29 42 . . 314 50 Parts 30 | 1 4 6 . . 19 . Haulers Intercepted . | . . . . . . . Recyclers Shooed . | . . . . . . . Parts Field Recycled . | . . . . . . . Retrieved Matter . | . . . . . . . Parts Self-Destructed . | . . . . . . . Prevented . | . . . . . . . Kills | -11 -10 -10 -10 -9 -8 -8 ------- Run | Yrd Mat Min Exi Min Mat Sto Combat Hostiles Destroyed 11 | 1 2 3 . . 4 1 Melee 4 | . 1 3 . . . . Guns 1 | 1 . . . . . . Cannons 1 | . . . . . 1 . Classes Destroyed 6 | 1 1 . . . 4 . Builder 1 | . . . . . 1 . Recycler 1 | . . . . . 1 . Watcher 2 | . . . . . 2 . Swarmer 5 | . 2 3 . . . . Grunt 3 | 1 . . . . 1 1 Sentry 3 | . . . . . 3 . Best Kill Streak 3 | 1 2 3 . . 2 1 Combat Bots Only 3 | 1 2 3 . . 2 1 Max Kills in Single Turn 2 | 1 1 1 . . 2 1 Gunslinging . | . . . . . . . Exploded . | . . . . . . . Melee 1 | . 1 1 . . . . Uniques/NPCs Destroyed . | . . . . . . . Combat | -11 -10 -10 -10 -9 -8 -8 -------- Run | Yrd Mat Min Exi Min Mat Sto Hostile Shots Fired 159 | 5 5 33 . . 46 70 Missed 42 | 2 . 10 . . 10 20 Damage Taken 1839 | 32 42 189 . . 579 997 Core 630 | 22 9 43 . . 255 301 Absorbed by Shields . | . . . . . . . Redirected to Shielding 9 | . 4 5 . . . . Core Remaining (%) 80 | 91 . . . 70 . . Volleys Fired 22 | 4 2 . . . 12 4 Largest 2 | 2 1 . . . 2 2 Hottest 98 | 60 20 . . . 98 98 Shots Fired 36 | 8 2 . . . 19 7 Gun 11 | 8 2 . . . . 1 Cannon 14 | . . . . . 11 3 Launcher 11 | . . . . . 8 3 Special . | . . . . . . . Kinetic 6 | 4 2 . . . . . Thermal 14 | . . . . . 11 3 Explosive 11 | . . . . . 8 3 Electromagnetic 5 | 4 . . . . . 1 Robot Hit Streak 6 | 2 . . . . 6 5 Robot Miss Streak 6 | 1 2 . . . 5 6 Penetration Max . | . . . . . . . Secondary Targets . | . . . . . . . Shots Hit Robots 39 | 4 4 7 . . 19 5 Core Hits 20 | 2 . 3 . . 12 3 Critical Kills 2 | . . . . . 1 1 Critical Parts Destroyed 3 | . 2 . . . 1 . Critical Strikes 5 | . 2 . . . 2 1 Meltdown 2 | . . . . . 1 1 Smash 3 | . 2 . . . 1 . Melee Attacks 27 | . 4 11 . . 12 . Impact 27 | . 4 11 . . 12 . Slashing . | . . . . . . . Piercing . | . . . . . . . Sneak Attacks 1 | . . 1 . . . . Combat Hostiles . | . . . . . . . Follow-up Attacks . | . . . . . . . Damage Inflicted 1214 | 40 114 191 . . 551 318 Guns 51 | 40 . . . . . 11 Cannons 143 | . . . . . 81 62 Explosions 512 | . . . . . 268 244 Melee 507 | . 114 191 . . 202 . Ramming 1 | . . . . . . 1 Kinetic 16 | 16 . . . . . . Thermal 143 | . . . . . 81 62 Explosive 512 | . . . . . 268 244 Electromagnetic 35 | 24 . . . . . 11 Impact 507 | . 114 191 . . 202 . Slashing . | . . . . . . . Piercing . | . . . . . . . Highest Corruption 9 | . . . . . 7 9 Average Corruption 7 | . . . . . 7 7 Corruption Purged . | . . . . . . . Corruption Blocked . | . . . . . . . Effects 11 | . . . . . 8 3 Message Errors 4 | . . . . . 2 2 Matter Fused 1 | . . . . . 1 . Heat Flow Errors 1 | . . . . . 1 . Energy Discharges 3 | . . . . . 3 . Parts Rejected 1 | . . . . . . 1 Misfires 1 | . . . . . 1 . Overload Shots . | . . . . . . . Overflow Damage 114 | . 61 17 . . 36 . Projectiles . | . . . . . . . Explosions . | . . . . . . . Melee 114 | . 61 17 . . 36 . Knockbacks 1 | . . 1 . . . . Impact 1 | . . 1 . . . . Kinetic . | . . . . . . . Secondary . | . . . . . . . Self-Inflicted Damage 86 | . . . . . 40 46 Shots 3 | . . . . . 1 2 Rammed 3 | . . . . . . 3 Targets Rammed 3 | . . . . . . 3 Kicked . | . . . . . . . Crushed . | . . . . . . . Highest Temperature 262 | 38 . . . . 262 104 Average Temperature 42 | 23 . . . . 47 42 Received Heat Transfer 690 | 18 . 6 . . 234 432 Siege Activations . | . . . . . . . Robots Corrupted . | . . . . . . . Combat Hostiles . | . . . . . . . Parts Fried 3 | . . . . . 3 . Impact Corruptions 8 | . 3 2 . . 3 . Robots Melted 2 | . . . . . 1 1 Combat Hostiles 2 | . . . . . 1 1 Parts Melted 5 | . . . . . 1 4 Heat Transferred 259 | . . . . . 148 111 Parts Sabotaged . | . . . . . . . Parts Stolen . | . . . . . . . Parts Stripped . | . . . . . . . Power Chain Reactions . | . . . . . . . Alert | -11 -10 -10 -10 -9 -8 -8 ------- Run | Yrd Mat Min Exi Min Mat Sto Peak Influence 172 | 20 93 106 . . 172 29 Initial 36 | . 13 36 . . . 8 Average 40 | 3 47 57 . . 69 12 Maximum Alert Level . | . . . . . . . Low Security (%) 100 | 100 100 100 . 100 100 100 Level 1 . | . . . . . . . Level 2 . | . . . . . . . Level 3 . | . . . . . . . Level 4 . | . . . . . . . Level 5 . | . . . . . . . High Security . | . . . . . . . Max Security . | . . . . . . . Squads Dispatched 4 | . . . . . . 4 Investigation . | . . . . . . . Extermination . | . . . . . . . Reinforcement 1 | . . . . . . 1 Assault . | . . . . . . . Garrison 3 | . . . . . . 3 Intercept . | . . . . . . . Searches Triggered . | . . . . . . . Construction Impeded . | . . . . . . . Haulers Reinforced . | . . . . . . . Active Scanning Responses . | . . . . . . . Cargo Convoy Interrupts . | . . . . . . . Stealth | -11 -10 -10 -10 -9 -8 -8 --------- Run | Yrd Mat Min Exi Min Mat Sto Distress Signals 2 | . 1 . . . 1 . Communications Jammed . | . . . . . . . Distress Signals . | . . . . . . . Times Spotted 28 | 1 4 5 . . 9 9 Peak Tracking Total 5 | 1 3 3 . . 3 5 Tactical Retreats 3 | . 2 . . . 1 . Traps | -11 -10 -10 -10 -9 -8 -8 ------- Run | Yrd Mat Min Exi Min Mat Sto Traps Triggered 4 | . . . . . . 4 Indirectly . | . . . . . . . Trap Hack Attempts . | . . . . . . . Triggered . | . . . . . . . Disarmed . | . . . . . . . Reprogrammed . | . . . . . . . Reused . | . . . . . . . Traps Reconfigurated 7 | . . . . . 5 2 Traps Extracted . | . . . . . . . Installed . | . . . . . . . Triggered . | . . . . . . . Machines | -11 -10 -10 -10 -9 -8 -8 ---------- Run | Yrd Mat Min Exi Min Mat Sto Machines Disabled 1 | . . . . . 1 . Max in Single Turn 1 | . . . . . 1 . Machines Repaired . | . . . . . . . Machines Dismantled . | . . . . . . . Machines Sabotaged . | . . . . . . . Overloaded Fab Kills . | . . . . . . . Hacking | -11 -10 -10 -10 -9 -8 -8 --------- Run | Yrd Mat Min Exi Min Mat Sto Machines Accessed 11 | . 2 . 4 . 2 3 Terminals 4 | . 2 . . . 1 1 Fabricators . | . . . . . . . Repair Stations . | . . . . . . . Recycling Units 1 | . . . . . . 1 Scanalyzers 1 | . . . . . 1 . Garrison Access 1 | . . . . . . 1 Total Hacks 51 | . 3 . 34 . 4 10 Successful 43 | . 3 . 34 . 2 4 Failed 8 | . . . . . 2 6 Catastrophic 1 | . . . . . . 1 Database Lockouts . | . . . . . . . Manual 4 | . . . 4 . . . Terminals 8 | . 3 . . . 2 3 Fabricators . | . . . . . . . Repair Stations . | . . . . . . . Recycling Units 5 | . . . . . . 5 Scanalyzers 2 | . . . . . 2 . Garrison Access 2 | . . . . . . 2 Terminal Hacks 38 | . 3 . 34 . . 1 Record 35 | . 2 . 33 . . . Dispatch Records 1 | . . . . . . 1 Reinforcement Status 1 | . 1 . . . . . Derelict Proto ID Bank 1 | . . . 1 . . . Fabricator Hacks . | . . . . . . . Repair Station Hacks . | . . . . . . . Recycling Unit Hacks 2 | . . . . . . 2 Recycle Component 1 | . . . . . . 1 Process 1 | . . . . . . 1 Scanalyzer 2 | . . . . . 2 . Insert Component 1 | . . . . . 1 . Analyze 1 | . . . . . 1 . Garrison Access Hacks 1 | . . . . . . 1 Unlock Access 1 | . . . . . . 1 Unauthorized Hacks . | . . . . . . . Terminals . | . . . . . . . Fabricators . | . . . . . . . Repair Stations . | . . . . . . . Recycling Units . | . . . . . . . Scanalyzers . | . . . . . . . Garrison Access . | . . . . . . . Data Cores Recovered . | . . . . . . . Used . | . . . . . . . Hacking Detections 6 | . 1 . . . 2 3 Full Trace Events . | . . . . . . . Feedback Events . | . . . . . . . Feedback Blocked . | . . . . . . . Robot Schematics Acquired . | . . . . . . . Robots Built . | . . . . . . . Authchips . | . . . . . . . Time . | . . . . . . . Total Robot Build Rating . | . . . . . . . Part Schematics Acquired 1 | . . . . . 1 . Parts Built . | . . . . . . . Authchips . | . . . . . . . Time . | . . . . . . . Total Part Build Rating . | . . . . . . . Parts Repaired . | . . . . . . . Time . | . . . . . . . Parts Recycled 1 | . . . . . . 1 Recycled Matter 36 | . . . . . . 36 Retrieved Matter . | . . . . . . . Retrieved Components . | . . . . . . . Parts Scanalyzed 1 | . . . . . 1 . Part Schematics Acquired 1 | . . . . . 1 . Parts Damaged . | . . . . . . . Bothacking | -11 -10 -10 -10 -9 -8 -8 ------------ Run | Yrd Mat Min Exi Min Mat Sto Used RIF Installer . | . . . . . . . Robots Hacked . | . . . . . . . Non-combat . | . . . . . . . Combat . | . . . . . . . Robot Hacks Applied . | . . . . . . . Relay Couplers Released . | . . . . . . . Fabnet Peak Effective % . | . . . . . . . Robots Rewired . | . . . . . . . Allies Hacked . | . . . . . . . Hacks Repelled . | . . . . . . . Allies | -11 -10 -10 -10 -9 -8 -8 -------- Run | Yrd Mat Min Exi Min Mat Sto Total Allies . | . . . . . . . Largest Group . | . . . . . . . Highest-Rated Group . | . . . . . . . Highest-Rated Ally . | . . . . . . . Total Orders . | . . . . . . . Ally Attacks . | . . . . . . . Total Damage . | . . . . . . . Kills . | . . . . . . . Allies Corrupted . | . . . . . . . Allies Melted . | . . . . . . . Intel | -11 -10 -10 -10 -9 -8 -8 ------- Run | Yrd Mat Min Exi Min Mat Sto Robot Analysis Total . | . . . . . . . Derelict Logs Recovered 2 | . . 1 . 1 . . Drone Launches . | . . . . . . . Drone Recoveries . | . . . . . . . Exploration | -11 -10 -10 -10 -9 -8 -8 ------------- Run | Yrd Mat Min Exi Min Mat Sto Turns Passed 1606 | 65 99 253 316 306 450 117 Spaces Moved 2084 | 63 97 279 531 711 338 65 Core 32 | 17 . . . . 6 9 Treads 218 | . . . . . 162 56 Legs . | . . . . . . . Wheels 678 | 46 97 279 256 . . . Hover . | . . . . . . . Flight 1156 | . . . 275 711 170 . Fastest Speed 37 | 50 80 80 37 37 37 50 Average Speed 67 | 71 80 80 57 42 105 147 Slowest Speed 160 | 80 80 80 80 117 160 160 Overloaded Moves . | . . . . . . . Propulsion Burnouts . | . . . . . . . Robots Hopped 1 | . . . . 1 . . Cave-ins Triggered . | . . . . . . . Exploration Rate (%) 38 | 6 22 51 72 81 26 14 Regions Visited 6 Branch Regions 4 Pre-discovered Areas 1 | . . . 1 . . . Known Exits Taken . | . . . . . . . Unknown Exits Taken 6 | 1 1 1 1 1 1 . Scrap Searched . | . . . . . . . Spaces Dug . | . . . . . . . Terrain Destroyed 58 | . . . . . 45 13 Melee . | . . . . . . . Projectile . | . . . . . . . AOE 58 | . . . . . 45 13 Terrain Rammed . | . . . . . . . Walls Destroyed . | . . . . . . . Machines Disabled . | . . . . . . . Actions | -11 -10 -10 -10 -9 -8 -8 --------- Run | Yrd Mat Min Exi Min Mat Sto Total 2199 | 72 110 289 541 715 393 79 Wait 3 | . . . . . 3 . Move 2076 | 62 96 278 530 708 337 65 Hop 1 | . . . . 1 . . Pick Up 7 | 1 3 . 1 . 2 . Fast Attach 20 | 5 2 . 1 1 11 . Attach 15 | . . . 4 . 6 5 Detach 16 | . 1 . 4 2 7 2 Swap . | . . . . . . . Drop 9 | . 2 . 1 3 3 . Fire 22 | 4 2 . . . 12 4 Melee 27 | . 4 11 . . 12 . Ram 1 | . . . . . . 1 Kick . | . . . . . . . Crush 2 | . . . . . . 2 Escape Stasis . | . . . . . . . Rewire . | . . . . . . . Trap . | . . . . . . . Miscellaneous . | . . . . . . . Route ------- -11/Scrapyard -10/Materials -10/Mines (discovered 2 exits: [*Mat] / *Exi) -10/Exiles (discovered 2 exits: [*Min x2]) -9/Mines -8/Materials (discovered 2 exits: Fac / *Sto) -8/Storage (discovered 2 exits: Rec / Gar) History --------- Turn | Location | Event 2 | -11/Scrapyard | Met Revision 17 44 | -11/Scrapyard | Discovered new exit (range 8) 66 | -11/Scrapyard | Entered Materials 85 | -10/Materials | Discovered new exit (range 10) 165 | -10/Materials | Entered Mines 306 | -10/Mines | Build established: Mutant 314 | -10/Mines | Discovered new exit (range 5) 409 | -10/Mines | Learned location of 1 exit from Materials 413 | -10/Mines | Deemed a non-threat by the Exiles lab entrance 413 | -10/Mines | Discovered new exit (range 5) 418 | -10/Mines | Entered Exiles 449 | -10/Exiles | Met 8R-AWN 460 | -10/Exiles | Discovered new exit (range 15) 489 | -10/Exiles | Met EX-HEX 518 | -10/Exiles | Met EX-DEC 565 | -10/Exiles | Discovered new exit (range 10) 626 | -10/Exiles | Learned location of Zion (-7) 645 | -10/Exiles | Met EX-BIN 651 | -10/Exiles | Aligned with FarCom system 652 | -10/Exiles | Given EX-Vault access code 686 | -10/Exiles | Opened EX-Vault 693 | -10/Exiles | Found Prototype Device 693 | -10/Exiles | Identified Trap Reconfigurator 704 | -10/Exiles | Warned to stay clear of 0b10 Research branches 734 | -10/Exiles | Left Exiles lab with Trap Reconfigurator 734 | -10/Exiles | Entered Mines 757 | -9/Mines | Met a Derelict bent on vengeance 778 | -9/Mines | YI-UF0 nonchalantly dropped a Grenade Launcher on the ground 987 | -9/Mines | Discovered new exit (range 14) 1040 | -9/Mines | Entered Materials 1040 | -8/Materials | Evolved 4 slots: Power x1, Propulsion x1, Utility x2 1041 | -8/Materials | Identified exit to Factory 1189 | -8/Materials | Lost 3 parts (1p2n) 1319 | -8/Materials | Discovered new exit (range 12) 1490 | -8/Materials | Entered Storage 1491 | -8/Storage | Identified exit to Recycling 1498 | -8/Storage | Identified exit to Garrison 1538 | -8/Storage | Core integrity fell below 50% 1591 | -8/Storage | Core integrity fell below 20% 1607 | -8/Storage | Destroyed by G-47 Trooper with Particle Gun Last Messages --------------- Critical hit (Burn: +37). Slammed into R-06 Scavenger. :%JHD6MM2A9N0WRO8MB8DLWJDDAQ<7|98U Imp. Treads destroyed. Slug penetrates Compression Vault. Imp. Treads destroyed. Compression Vault explodes. H-55 Commando destroyed. G-47 Trooper destroyed. Slammed into R-06 Scavenger. R-06 Scavenger suffers critical hit (Burn). G-47 Trooper suffers critical hit (Meltdown). Particle Gun melted. Imp. Heat Sink melted. Aluminum Leg melted. Lgt. Nuclear Core melted. System corrupted: Adv. Beam Cannon rejected. Grenade Launcher destroyed. U-05 Engineer lays Concrete. The unstable cave ceiling collapses. Map ----- +----------------------------------------------------+ | | | | | | | | | ?#######????????????????????????????? | | ?# #????????????????????????????? | | ?# """ #?????????#######????????????? | | ?# "T" ########### ###########??? | | ?# # ??? | | ??## ?? | | ??# [ ??? | | ??# # %##### #####+####???? | | ??# """ "" #####+#####??????????? | | ??## "Y" >G"# #??????????? | | ???# "" # ##?????????? | | ???## # *% #?????????? | | ????# #### #?????????? | | ????####### #?# #?????????? | | ?????T????#Y### #?????????? | | ??????????# Y *%! #?????????? | | ??????????# ]g# #??????????? | | ??????????# ## ##??????????? | | ??????????# ## ###???????????? | | ??????????+ #########????????"""??? | | ??????????# #????????????????"""??? | | ??????????# @ #????????????????"""??? | | ?Y????????# #?????????????????????? | | ????????? % #???????????????"""??? | | ????????## #???????????????"""??? | | ????????? #???????????????"""??? | | ???????? # #????????????????????? | | ??????? # #????????????????????? | | ?????? # ????????????????????? | | ????? + ????????????????????? | | ????? #a g ???????????????????? | | ????* ?###a###???????????????????? | | ??? ????/#?????????????????????? | | ??? ?????? ?????????????????????? | | ?????#??????? ?????????????????????? | | ????????????? k?????????????????????? | | ????????????? k?????????????????????? | | ????????????????????????????????????? | | ????????????????????????????????????? | | ????????????????????????????????????? | | ????????????????????????????????????? | | ????????????????????????????????????? | | ????????????????????????????????????? | | ????????????????????????????????????? | | ????????????????????????????????????? | | ????????????????????????????????????? | +----------------------------------------------------+ Best States ------------- Heat Dissipation 31 Energy Generation 15 Energy Capacity 150 Matter Stores 300 Matter Capacity 300 Sight Range 16 Terrain Scan Density 10 Armor Coverage 150 Power Shielding 33 Evasion (%) 62 Targeting Accuracy 6 Recoil Reduction 3 Item Schematics ----------------- Hammer | -8/Materials | Scanalyzed Robot Schematics ------------------ None Fabricated ------------ Nothing Alien Tech Used ----------------- None Achievements -------------- It's Just You Librarian Maybe Next Time I'll Detach My Launcher Risk Taker Tourist Uninvited Guest Challenges ------------ None Game ------ Seed BarrageRocketCarapace Manual? 0 Play Time 00:45:43 Cumulative 1.5 hours Start 2024.04.02 @ 21:56:31 End 2024.04.04 @ 21:03:38 Sessions 3 Manual Loads 0 Difficulty Rogue Special Mode None Game No. 2 Rogue 2 Adventurer 0 Explorer 0 Win Type - Total 0 Types 0/0/0/0/0/0/0/0/0 Lore% 6 Gallery% 2 Achievement% 4 Wizard Run 0 Options --------- Layout 1 ASCII 0 Keyboard 0 Movement Vi Keybinds 0 Fullscreen 1 Font 24/Smallcaps Map View 50x35 Zoom Use 0% Tactical HUD 0 Map Filters NONE Filters NONE Steam 1 RUN: aa049a5d-b519-45e6-b713-4219e4d0221a